[Event "44th Chess Olympiad Women 2022"]
[Site "Chennai"]
[Date "2022.07.30"]
[Round "2.33"]
[White "Castrillon Gomez, Melissa"]
[Black "Cooke, Suzie G."]
[Result "1-0"]
[ECO "D30"]
[WhiteElo "2230"]
[BlackElo "1936"]
[Annotator "TA"]
[PlyCount "63"]
[EventDate "2022.07.29"]
[EventType "team-tourn"]
[EventCountry "IND"]
[SourceTitle "playchess.com"]
[Source "ChessBase"]
[SourceQuality "1"]
[WhiteTeam "Colombia"]
[BlackTeam "Scotland"]
[WhiteTeamCountry "COL"]
[BlackTeamCountry "SCO"]
[TimeControl "40/5400+30:1800+30"]

{[%evp 16,63,31,0,5,12,35,27,26,27,31,24,66,60,64,10,10,7,16,10,55,48,45,22,21,25,22,21,286,269,303,308,310,306,501,494,807,777,808,579,685,685,659,653,796,712,2018,1589,29991,29992]} 1. d4 {[%emt 0:00:08]} d5 {[%emt 0:00:10]} 2. c4 {[%emt 0:00:05]} e6 {[%emt 0:00:08]} 3. Nf3 {[%emt 0:00:14]} c5 {[%emt 0:00:10]} 4. cxd5 {[%emt 0:00:10]} exd5 {[%emt 0:00:29]} 5. g3 {[%emt 0:00:22]} Nc6 {[%emt 0:00:45][%cal Bb8c6,Bc6a5,Ba5c4][%mdl 32]} 6. Bg2 {[%emt 0:00:11]} Nf6 {[%emt 0:00:33]} 7. O-O {[%emt 0:00:08]} Be7 {[%emt 0:00:29]} 8. Be3 {[%emt 0:00:51]} c4 {[%emt 0:09:48]} 9. b3 {[%emt 0:00:11]} cxb3 {[%emt 0:08:11] D30: Queen's Gambit Declined: Systems without Nc3.} 10. Qxb3 {[%emt 0:08:08]} Na5 {[%emt 0:04:05]} 11. Qd3 {[%emt 0:00:21]} Nc4 {[%emt 0:06:58] White has an edge.} 12. Bf4 {[%emt 0:00:50]} O-O {[%emt 0:04:13]} 13. Nc3 {[%emt 0:01:21]} g6 {[%emt 0:13:42]} 14. Ne5 {[%emt 0:01:30]} Bf5 {[%emt 0:05:16] [#]} 15. Qd1 $146 {[%emt 0:01:49]} (15. Qf3 $14) ({Predecessor:} 15. Qf3 Nb6 16. Bh6 Re8 17. g4 Be6 18. h3 Rc8 19. Rfb1 Nfd7 20. Nxd7 Qxd7 21. Nb5 {1-0 (36) Drasko,M (2557)-Citak,S (2324) Kemer 2007}) 15... Rc8 $11 {[%emt 0:05:56]} 16. Qb3 {[%emt 0:26:11] Hoping for Nxc4.} Na5 {[%emt 0:03:08]} 17. Qb2 {[%emt 0:00:08]} a6 {[%emt 0:02:21]} 18. Rac1 {[%emt 0:04:22]} b5 {[%emt 0:00:41]} 19. Bh6 {[%emt 0:04:20]} Re8 {[%emt 0:00:24] [#]} 20. Nxd5 $1 {[%emt 0:12:15]} Nxd5 {[%emt 0:00:27]} 21. e4 {[%emt 0:00:13]} f6 $2 {[%emt 0:03:36][%mdl 8192] Loses the game.} (21... Bxe4 $11 22. Bxe4 Nb6) 22. exf5 $18 {[%emt 0:17:20] The board is on fire.} Rxc1 {[%emt 0:02:18]} 23. Qxc1 {[%emt 0:05:26] Black must now prevent Nc6.} fxe5 {[%emt 0:03:20]} 24. dxe5 {[%emt 0:00:07] Rd1 is the strong threat.} Nb4 $2 {[%emt 0:06:23]} (24... gxf5 $2 25. Rd1 Kh8 26. Bxd5 $18) (24... Nb6) 25. f6 {[%emt 0:01:25] And now Rd1 would win.} Bxf6 {[%emt 0:07:16]} (25... Nd3 $142 26. fxe7 Nxc1 27. exd8=Q Ne2+ 28. Kh1 Rxd8) 26. exf6 {[%emt 0:00:19]} Qxf6 {[%emt 0:00:07]} 27. a3 {[%emt 0:04:47]} Nbc6 {[%emt 0:01:41]} 28. Bd5+ {[%emt 0:00:16]} Kh8 {[%emt 0:00:29]} 29. Bg5 {[%emt 0:01:11][%cal Rg5f6] This bishop pair is nice.} Qd6 {[%emt 0:01:57] [#]} 30. Qc5 {[%emt 0:06:07][%mdl 512]} Qe5 {[%emt 0:04:56]} (30... Qf8 31. Qc3+) 31. f4 {[%emt 0:01:39]} Qf5 {[%emt 0:00:43]} 32. Qc3+ {[%emt 0:00:27] Weighted Error Value: White=0.18 (very precise) /Black=0.85} 1-0

[Event "44th Chess Olympiad Women 2022"]
[Site "Chennai"]
[Date "2022.07.30"]
[Round "2.33"]
[White "Roy, Ali"]
[Black "Argote Heredia, Valentina"]
[Result "0-1"]
[ECO "A07"]
[WhiteElo "1893"]
[BlackElo "2205"]
[Annotator "TA"]
[PlyCount "94"]
[EventDate "2022.07.29"]
[EventType "team-tourn"]
[EventCountry "IND"]
[SourceTitle "playchess.com"]
[Source "ChessBase"]
[SourceQuality "1"]
[WhiteTeam "Scotland"]
[BlackTeam "Colombia"]
[WhiteTeamCountry "SCO"]
[BlackTeamCountry "COL"]
[TimeControl "40/5400+30:1800+30"]

{[%evp 14,94,0,-14,-17,-36,-36,-41,-24,-42,-39,-53,-34,-62,-32,-49,0,-12,0,-27,50,41,64,53,51,54,47,14,16,0,0,0,0,0,60,22,158,177,165,43,17,-26,-25,-143,-67,-56,0,-135,-136,-139,-48,-30,-22,-597,-569,-702,-670,-640,-543,-475,-416,-1364,-1033,-925,-910,-1012,-1029,-992,-975,-1006,-926,-929,-1027,-1006,-956,-2050,-1814,-2197,-2148,-2159,-2041,-1827,-1680]} 1. Nf3 {[%emt 16:33:54]} d5 {[%emt 0:00:10]} 2. g3 {[%emt 0:00:10]} g6 {[%emt 0:00:23]} 3. Bg2 {[%emt 0:00:15]} Bg7 {[%emt 0:00:06]} 4. O-O {[%emt 0:00:14]} e5 {[%emt 0:00:13]} 5. d3 {[%emt 0:00:27]} Ne7 {[%emt 0:00:40]} 6. Nbd2 {[%emt 0:02:22]} O-O {[%emt 0:00:28]} 7. e4 {[%emt 0:03:19]} Nbc6 {[%emt 0:03:07]} 8. Re1 {[%emt 0:05:50]} d4 {[%emt 0:11:26] [#] A07: Réti Opening: New York and Capablanca Systems.} 9. h4 $146 {[%emt 0:05:15]} ({Predecessor:} 9. a4 a5 10. Nc4 Be6 11. Bd2 h6 12. Rf1 g5 13. Kh1 Ng6 14. Ng1 Qd7 15. b3 Kh8 16. f3 {0-1 (57) Salgado Lopez,I (2644)-Saric,I (2669) Riadh 2017}) 9... Bg4 {[%emt 0:09:00]} 10. Nf1 {[%emt 0:02:25]} h6 {[%emt 0:07:28] Black is slightly better.} 11. N1h2 {[%emt 0:00:30]} Be6 {[%emt 0:00:09]} 12. Bd2 {[%emt 0:16:02]} Qd7 {[%emt 0:06:12]} 13. Qe2 {[%emt 0:10:09]} Rae8 {[%emt 0:03:23]} 14. c3 {[%emt 0:02:41]} f5 {[%emt 0:07:07]} 15. cxd4 {[%emt 0:04:11]} fxe4 {[%emt 0:04:45]} 16. dxe4 {[%emt 0:01:37]} exd4 {[%emt 0:00:30]} (16... Nxd4 $11 17. Nxd4 exd4) 17. Bf4 $14 {[%emt 0:01:08]} Nc8 {[%emt 0:06:16][%cal Be7c8,Bc8d6,Bd6c4][%mdl 32]} 18. Qd2 {[%emt 0:02:32]} Kh7 {[%emt 0:01:58]} 19. Bf1 {[%emt 0:01:25]} Nd6 {[%emt 0:01:31]} 20. e5 {[%emt 0:05:12]} Nc4 {[%emt 0:09:40]} 21. Qc2 {[%emt 0:03:30]} b5 {[%emt 0:03:34]} 22. h5 {[%emt 0:06:15]} Bf5 {[%emt 0:00:13] Active counter play!} 23. hxg6+ {[%emt 0:00:34]} Kh8 {[%emt 0:06:25]} ({Black should play} 23... Bxg6 $11 24. Bd3 Bxd3 25. Qxd3+ Kg8) 24. Bd3 {[%emt 0:02:59] And now Bxf5 would win.} Nb4 {[%emt 0:05:19]} (24... N4xe5 $11 25. Nxe5 Nxe5 26. Bxe5 Rxe5) 25. Bxf5 $16 {[%emt 0:00:21]} Rxf5 {[%emt 0:00:32]} 26. e6 {[%emt 0:08:02]} (26. Qe4 $18) 26... Qd5 $1 $14 {[%emt 0:00:44]} (26... Nxc2 $2 27. exd7 Rd8 28. Re8+ (28. Bxc7 Rxd7 29. Re8+ Rf8 $11) 28... Rf8 29. Rc1 $18 (29. Bxc7 Rxd7 30. Rxf8+ Bxf8 $11)) (26... Rxe6 27. Qxf5 Rxe1+ 28. Rxe1 $16) 27. Qe4 {[%emt 0:00:41]} (27. Qb3 $5 {[%cal Rb3b4]} a5 28. a3 $14 (28. Bxc7 d3 $17)) 27... d3 {[%emt 0:01:46]} 28. g4 {[%emt 0:04:03]} (28. Rab1 $11 {keeps the balance.}) 28... Qxe4 {[%emt 0:04:13] Really sharp!} ({Black should try} 28... Rf6 $1 $17 {[%cal Rf6e6]} 29. e7 Qxe4 30. Rxe4 Nd5) 29. Rxe4 $15 {[%emt 0:00:04]} Rd5 {[%emt 0:00:21]} (29... Rf6 $15 30. a4 (30. Bxc7 $2 Rfxe6 31. Rxe6 Rxe6 $19) 30... Rexe6 31. Rxe6 Rxe6 32. axb5 Bxb2 33. Rxa7 Nd5 34. Bxh6 Rxg6 35. Ra8+ Kh7) 30. Nd2 {[%emt 0:07:03] [#]} (30. Bxc7 Bxb2 31. Rb1 Nxa2 32. Rxb2 (32. Rxc4 $2 bxc4 33. Rxb2 c3 $19) 32... Nxb2 33. Be5+ Rxe5 $1 {[%mdl 512]} 34. Rxe5 Nc3 $17) (30. Nf1 $11 {remains equal.}) 30... Nc2 $1 $17 {[%emt 0:01:22]} 31. Rb1 {[%emt 0:01:09]} Nd4 {[%emt 0:01:48]} (31... Nxb2 $17 {Hoping for ...Na4.} 32. Bxc7 Nd4) 32. Nxc4 $15 {[%emt 0:01:44]} bxc4 {[%emt 0:00:06]} 33. Bxc7 $2 {[%emt 0:00:30][%mdl 8192]} ({Don't play} 33. Rbe1 Nc2 34. Rb1 Rd4 35. Rxd4 Nxd4 $17) (33. Bd2 $1 $11 {and White is okay.}) 33... Rxe6 $19 {[%emt 0:01:19]} 34. Rxe6 {[%emt 0:00:51]} Nxe6 {[%emt 0:00:05][%cal Bd4e6,Be6g5,Bg5f3,Bf3d2,Bd2e4][%mdl 32]} 35. Bg3 {[%emt 0:02:13]} d2 {[%emt 0:00:07]} 36. Rd1 {[%emt 0:00:08]} Bxb2 {[%emt 0:00:10]} 37. Nf3 {[%emt 0:00:57]} (37. Nf1 $142 c3 38. Ne3) 37... Ng5 {[%emt 0:01:12] Black is clearly winning.} 38. Nxd2 {[%emt 0:01:17] [#]} Rxd2 $1 {[%emt 0:00:07][%mdl 576] Remove Defender} 39. Rxd2 {[%emt 0:00:03][%mdl 4096] Endgame KRB-KBN} (39. Rf1 Bd4) 39... Nf3+ {[%emt 0:00:06]} 40. Kf1 {[%emt 0:00:10]} Nxd2+ {[%emt 0:00:05]} 41. Ke2 {[%emt 0:00:05]} Ne4 {[%emt 0:00:56]} 42. Bf4 {[%emt 0:00:44]} Kg7 {[%emt 0:00:15] ...Nc3+ is the strong threat.} 43. Be3 {[%emt 0:00:51]} a5 {[%emt 0:00:18][%cal Ba7a5,Ba5a4][%mdl 32] Strongly threatening ...Nc3+.} 44. f4 {[%emt 0:00:23]} Kxg6 {[%emt 0:00:27]} 45. f5+ {[%emt 0:00:14]} Kg7 {[%emt 0:00:41] Threatens to win with ...Nc3+.} 46. Kd1 {[%emt 0:00:55]} Be5 {[%emt 0:01:12]} 47. Kc2 {[%emt 0:00:18]} a4 {[%emt 0:01:50] What a bad dream for White.  Weighted Error Value: White=0.75/Black=0.34} 0-1

[Event "44th Chess Olympiad Women 2022"]
[Site "Chennai"]
[Date "2022.07.30"]
[Round "2.33"]
[White "Hughes, Rhian"]
[Black "Pachon, Adriana"]
[Result "0-1"]
[ECO "A10"]
[WhiteElo "1843"]
[BlackElo "2007"]
[Annotator "TA"]
[PlyCount "84"]
[EventDate "2022.07.29"]
[EventType "team-tourn"]
[EventCountry "IND"]
[SourceTitle "playchess.com"]
[Source "ChessBase"]
[SourceQuality "1"]
[WhiteTeam "Scotland"]
[BlackTeam "Colombia"]
[WhiteTeamCountry "SCO"]
[BlackTeamCountry "COL"]
[TimeControl "40/5400+30:1800+30"]

{[%evp 9,84,7,9,0,0,-64,-18,-35,0,-95,-49,-54,-63,-105,-81,-116,-81,-116,-105,-88,-83,-155,-127,-128,-41,-75,44,49,50,50,87,12,23,24,22,27,21,0,0,0,0,0,2,8,16,-8,-8,-9,-10,-38,-14,-18,-11,-14,37,33,33,-8,-8,-8,-9,-102,-104,-29946,-7547,-29950,-29954,-29954,-29938,-6582,-6299,-12845,-5525,-2376,-1839,-6474,-5115]} 1. c4 {[%emt 0:00:04]} b6 {[%emt 0:00:25]} 2. Nc3 {[%emt 0:00:13]} Bb7 {[%emt 0:00:07]} 3. e4 {[%emt 0:03:39]} e6 {[%emt 0:00:37]} 4. g3 {[%emt 0:03:36]} f5 {[%emt 0:00:41]} 5. Bg2 {[%emt 0:02:04]} Nf6 {[%emt 0:00:32][%cal Rf6e4]} 6. f3 {[%emt 0:03:58] A10: English Opening: Unusual Replies for Black.} fxe4 {[%emt 0:04:39] [#]} 7. Nxe4 $146 {[%emt 0:03:48]} (7. fxe4 $11 e5 8. Nf3) ({Predecessor:} 7. fxe4 e5 8. Nf3 Nc6 9. O-O Bc5+ 10. Kh1 O-O 11. d3 Qe8 12. Nd5 Ng4 13. Qe2 {0-1 (27) Milinkovic,N (1940)-Pein,J (2218) Belgrade 2021}) 7... Nxe4 {[%emt 0:02:29]} (7... Be7 $15) 8. fxe4 $11 {[%emt 0:00:11] The position is equal.} Qf6 {[%emt 0:01:46]} 9. Qf3 {[%emt 0:04:52]} (9. d4 $11 {remains equal.}) 9... Nc6 {[%emt 0:05:36]} (9... Qxf3 $17 10. Nxf3 Bxe4) 10. Qxf6 $1 $15 {[%emt 0:01:39]} gxf6 {[%emt 0:00:05]} 11. Ne2 {[%emt 0:01:53]} Ne5 {[%emt 0:06:09]} 12. O-O {[%emt 0:05:07]} Nxc4 {[%emt 0:01:45]} 13. d3 {[%emt 0:01:02]} Ne5 {[%emt 0:02:28]} 14. d4 {[%emt 0:02:38]} Nc6 {[%emt 0:02:03]} 15. d5 {[%emt 0:05:41]} ({White should play} 15. Be3) 15... Bc5+ {[%emt 0:00:29]} 16. Kh1 {[%emt 0:00:06]} Nd4 {[%emt 0:01:29]} (16... Ne5 $17 {Strongly threatening ...Ba6.} 17. Nf4 Ba6) 17. Nc3 {[%emt 0:06:15]} Ke7 {[%emt 0:00:56]} (17... Rf8 $17) 18. e5 $1 $14 {[%emt 0:03:45]} Ba6 {[%emt 0:15:03]} 19. Rxf6 {[%emt 0:11:07]} Rag8 {[%emt 0:04:08] Inhibits Bg5.} 20. Ne4 {[%emt 0:05:27]} ({White should try} 20. Bf4 $16) 20... Nc2 $11 {[%emt 0:03:28] [#]} 21. Nxc5 $1 {[%emt 0:05:52]} bxc5 {[%emt 0:00:50]} 22. Rb1 {[%emt 0:01:40]} Bd3 {[%emt 0:05:37]} 23. dxe6 {[%emt 0:04:45]} Nd4 {[%emt 0:05:05]} 24. Ra1 {[%emt 0:07:01] Hoping for exd7.} Nxe6 {[%emt 0:00:07]} 25. Be3 {[%emt 0:01:14]} Rf8 {[%emt 0:03:28]} 26. Rd1 {[%emt 0:01:18]} c4 {[%emt 0:01:37]} 27. Rxf8 {[%emt 0:04:59]} Rxf8 {[%emt 0:00:04]} 28. Bxa7 {[%emt 0:01:31] A strong pair of Bishops.} c6 $1 {[%emt 0:02:16] Black wants to play ...Ra8.} 29. Be3 {[%emt 0:00:59]} Rf5 {[%emt 0:00:16]} (29... Rb8 $5 {[%cal Rb8b2]}) 30. Bd2 {[%emt 0:02:41]} Rxe5 {[%emt 0:01:49]} 31. Bc3 {[%emt 0:00:26]} Rf5 {[%emt 0:00:36]} (31... Re2 $11) 32. Re1 $14 {[%emt 0:01:53]} Rf2 {[%emt 0:05:54]} 33. Bb4+ {[%emt 0:00:51]} Kf7 {[%emt 0:00:28]} 34. Bc3 {[%emt 0:01:18]} d5 {[%emt 0:00:17]} 35. Bh3 {[%emt 0:01:37] [#]} (35. Kg1 $11 {keeps the balance.} Rc2 36. Bh3) 35... Ng5 $1 $17 {[%emt 0:05:39] Black is more active.} 36. Bd4 $2 {[%emt 0:00:54][%mdl 8192] This costs White the game.} (36. Bg4 $17) 36... Nxh3 {[%emt 0:00:45]} 37. Bxf2 {[%emt 0:00:12]} Be4+ {[%emt 0:00:09][%mdl 64] Zwischenzug} ({Inferior is} 37... Nxf2+ 38. Kg2 Ne4 39. a4 $19) 38. Rxe4 {[%emt 0:00:28]} Nxf2+ {[%emt 0:00:03]} (38... dxe4 $2 39. Be3 $18) 39. Kg2 {[%emt 0:00:15]} Nxe4 {[%emt 0:00:05] KN-KP. Black is clearly winning.} 40. a4 {[%emt 0:00:39]} Ke6 {[%emt 0:03:41] ( -> ...Kd6)} 41. Kf3 {[%emt 0:30:22]} Nd2+ {[%emt 0:30:25]} 42. Ke2 {[%emt 0:00:38]} Nb3 {[%emt 0:00:06] Weighted Error Value: White=0.66/Black=0.27 (precise)} 0-1

[Event "44th Chess Olympiad Women 2022"]
[Site "Chennai"]
[Date "2022.07.30"]
[Round "2.34"]
[White "Agrest, Inna"]
[Black "Grishina, Alexandra"]
[Result "1-0"]
[ECO "B12"]
[WhiteElo "2217"]
[BlackElo "2012"]
[Annotator "TA"]
[PlyCount "101"]
[EventDate "2022.07.29"]
[EventType "team-tourn"]
[EventCountry "IND"]
[SourceTitle "playchess.com"]
[Source "ChessBase"]
[SourceQuality "1"]
[WhiteTeam "Sweden"]
[BlackTeam "Lebanon"]
[WhiteTeamCountry "SWE"]
[BlackTeamCountry "LBN"]
[TimeControl "40/5400+30:1800+30"]

{[%evp 11,101,9,24,15,17,14,27,-14,-12,-7,0,0,0,0,38,31,33,25,37,29,24,28,32,22,27,37,35,35,36,35,37,36,37,13,21,0,8,0,36,0,27,16,26,22,36,-6,-8,-78,-83,-85,-70,-75,-81,-87,18,2,2,2,2,2,16,16,130,116,134,126,180,167,177,174,189,189,210,202,514,502,579,575,531,501,499,439,467,345,1060,1060,1025,1019,996,992,926,925]} 1. e4 {[%emt 0:00:03]} c6 {[%emt 0:00:33]} 2. d4 {[%emt 0:00:07]} d5 {[%emt 0:00:31]} 3. f3 {[%emt 0:00:18]} dxe4 {[%emt 0:01:29]} 4. fxe4 {[%emt 0:00:14]} e5 {[%emt 0:01:54]} 5. Nf3 {[%emt 0:00:25]} Be6 {[%emt 0:01:45]} 6. c3 {[%emt 0:02:44]} Nd7 {[%emt 0:03:50]} 7. Bd3 {[%emt 0:02:52] B12: Caro-Kann: Advance Variation.} Bd6 {[%emt 0:03:02]} 8. O-O {[%emt 0:04:53]} Ngf6 {[%emt 0:03:48]} 9. h3 {[%emt 0:06:51] White has an edge.} h6 {[%emt 0:07:04]} 10. Be3 {[%emt 0:02:02] [#]} O-O $146 {[%emt 0:09:46]} ({Predecessor:} 10... Qe7 11. Nbd2 O-O 12. Qc2 Rfe8 13. Rae1 Bc7 14. a4 Rad8 15. Qb1 Nh5 16. Nc4 Ng3 {½-½ (77) Starostits,I-Hansen,T Zagan 1995}) 11. Nbd2 {[%emt 0:02:37]} Bc7 {[%emt 0:05:55]} 12. Bc2 {[%emt 0:04:11]} b5 {[%emt 0:05:38]} 13. Qe1 {[%emt 0:05:12]} Re8 {[%emt 0:04:02]} 14. Qf2 {[%emt 0:11:25]} Nh5 {[%emt 0:08:28]} 15. Rad1 {[%emt 0:04:34]} Qe7 {[%emt 0:10:59]} 16. dxe5 {[%emt 0:06:37]} Nxe5 {[%emt 0:03:54]} 17. Bc5 {[%emt 0:14:11]} Nxf3+ {[%emt 0:08:50]} 18. Nxf3 {[%emt 0:00:14][%cal Bd2f3,Bf3d4,Bd4b3,Bb3c5][%mdl 32]} Bg3 {[%emt 0:06:53]} 19. Bxe7 {[%emt 0:05:01]} (19. Qd4 {keeps more tension.} Qc7 20. e5 Nf4 21. Qe4) 19... Bxf2+ {[%emt 0:00:11]} 20. Rxf2 {[%emt 0:00:05][%cal Bf1f2,Bf2d2,Bd2d8][%mdl 32]} Rxe7 {[%emt 0:00:11]} 21. Nd4 {[%emt 0:00:26]} Bd7 {[%emt 0:08:51]} 22. Nb3 {[%emt 0:02:37][%cal Oe4e5]} Nf6 {[%emt 0:00:54]} 23. Nc5 {[%emt 0:01:56][%cal Of2f6] And now Rxf6! would win.} Be8 $1 {[%emt 0:00:21]} 24. Rfd2 {[%emt 0:01:24]} g6 {[%emt 0:00:49]} 25. a4 {[%emt 0:04:08]} Re5 {[%emt 0:00:30]} 26. b4 {[%emt 0:01:37]} a5 $1 {[%emt 0:00:43]} ({Don't play} 26... bxa4 27. Rf1 (27. Bxa4 Nxe4 28. Nxe4 Rxe4 $11) 27... Nh7 28. Ra1 $16 (28. Nxa4 Rb8 $14) (28. Bxa4 Ng5 $16)) 27. Rd8 {[%emt 0:04:36]} Ra7 {[%emt 0:01:01]} 28. axb5 {[%emt 0:07:15]} cxb5 {[%emt 0:00:11]} 29. Nd3 {[%emt 0:00:10]} (29. Rf1 $11 Kg7 30. Rd6 axb4 31. cxb4) 29... Rxe4 $17 {[%emt 0:00:48]} 30. bxa5 {[%emt 0:00:11]} Re2 {[%emt 0:00:22]} 31. Nb4 {[%emt 0:01:09] Strongly threatening R1d6.} Rxa5 {[%emt 0:00:31]} 32. Bd3 {[%emt 0:00:48] [#]} Rb2 {[%emt 0:00:58]} (32... Re6 $1 $17) 33. Rf1 $36 {[%emt 0:02:52][%mdl 2048] White fights for an advantage.} Kg7 {[%emt 0:00:32] [#]} 34. Rxf6 $1 {[%emt 0:01:03][%mdl 64] Remove Defender} Kxf6 {[%emt 0:00:02]} 35. Rxe8 {[%emt 0:00:05]} Ra1+ {[%emt 0:00:19]} 36. Kh2 {[%emt 0:00:14]} Rd1 {[%emt 0:01:25] White leaves nothing to chance now.} (36... Kg7 $11 {remains equal.}) 37. Bxb5 $16 {[%emt 0:00:40]} h5 {[%emt 0:00:06]} 38. h4 {[%emt 0:01:45]} Rbb1 {[%emt 0:00:44]} (38... Kg7 $16 39. Bc6 Rf1) 39. Bc6 {[%emt 0:01:03]} Rbc1 {[%emt 0:00:46]} 40. Bf3 {[%emt 0:00:49]} Rh1+ {[%emt 0:00:27]} 41. Kg3 {[%emt 0:03:39]} Kg7 {[%emt 0:07:45]} 42. Rc8 {[%emt 0:03:13]} f5 $2 {[%emt 0:02:52]} (42... Ra1 {is tougher.} 43. Rc7 Ra4) 43. Rc7+ {[%emt 0:03:15]} Kf6 {[%emt 0:01:09]} 44. Nd5+ {[%emt 0:05:24]} Ke5 {[%emt 0:03:21]} 45. Re7+ {[%emt 0:00:25]} Kd6 {[%emt 0:00:28][%cal Oc1c3]} 46. Rg7 {[%emt 0:00:18]} Ke5 {[%emt 0:06:30]} 47. Rxg6 {[%emt 0:06:15]} Rcf1 $2 {[%emt 0:01:31]} (47... Rhf1 48. Nf4 Rxf3+ 49. gxf3 Rg1+ 50. Kh2 Rf1 51. Nd3+ Kd5) 48. Nf4 $18 {[%emt 0:02:15][%cal Rf4d3] White is clearly winning.} Rxf3+ {[%emt 0:05:10]} 49. gxf3 {[%emt 0:00:41][%csl Gf4][%cal Rg6e6]} Rg1+ {[%emt 0:01:32]} 50. Ng2 {[%emt 0:00:45]} f4+ {[%emt 0:02:32]} 51. Kf2 {[%emt 0:00:26] Weighted Error Value: White=0.15 (very precise) /Black=0.27 (precise)} 1-0

[Event "44th Chess Olympiad Women 2022"]
[Site "Chennai"]
[Date "2022.07.30"]
[Round "2.34"]
[White "Johansson, Viktoria"]
[Black "Darweeche, Roaa"]
[Result "1-0"]
[ECO "A56"]
[WhiteElo "2041"]
[BlackElo "1548"]
[Annotator "TA"]
[PlyCount "83"]
[EventDate "2022.07.29"]
[EventType "team-tourn"]
[EventCountry "IND"]
[SourceTitle "playchess.com"]
[Source "ChessBase"]
[SourceQuality "1"]
[WhiteTeam "Sweden"]
[BlackTeam "Lebanon"]
[WhiteTeamCountry "SWE"]
[BlackTeamCountry "LBN"]
[TimeControl "40/5400+30:1800+30"]

{[%evp 9,83,50,77,77,72,40,89,86,83,62,62,56,81,44,48,30,33,15,31,39,54,50,64,12,9,12,81,0,0,0,0,0,95,46,46,0,285,258,256,266,527,512,555,443,459,378,389,407,436,433,425,426,411,409,379,366,369,368,365,298,654,643,838,840,829,777,996,749,5740,5654,1775,2493,29992,29993,29994,29994]} 1. d4 {[%emt 0:00:04]} Nf6 {[%emt 0:00:32]} 2. c4 {[%emt 0:00:11]} c5 {[%emt 0:00:34]} 3. d5 {[%emt 0:00:21]} e5 {[%emt 0:00:28]} 4. Nc3 {[%emt 0:01:01]} d6 {[%emt 0:00:38]} 5. g3 {[%emt 0:00:53]} Nbd7 {[%emt 0:02:03]} 6. Bg2 {[%emt 0:00:43] A56: Czech Benoni.} Be7 {[%emt 0:00:22]} 7. Nf3 {[%emt 0:05:55] has lost popularity (7.e4).} Nf8 {[%emt 0:02:08]} (7... a6 $14) 8. O-O $16 {[%emt 0:02:14] White is better.} Ng6 {[%emt 0:00:51]} 9. Qc2 {[%emt 0:04:05] [#]} O-O $146 {[%emt 0:02:26]} ({Predecessor:} 9... Bd7 10. Bg5 h6 11. Bxf6 Bxf6 12. Nd2 O-O 13. Be4 Ne7 14. Bh7+ Kh8 15. Nde4 Nc8 16. Nxf6 Qxf6 {½-½ (42) Ferry,J (1864)-Bricard,H (2126) Sainte Marie 2005}) 10. a3 {[%emt 0:07:37]} b6 {[%emt 0:00:52]} 11. b4 {[%emt 0:01:02]} h6 {[%emt 0:00:46]} 12. bxc5 {[%emt 0:08:30]} bxc5 {[%emt 0:00:04]} 13. Rb1 {[%emt 0:00:34]} Nh7 {[%emt 0:05:08]} 14. e4 {[%emt 0:06:12]} Ng5 {[%emt 0:01:28]} 15. Nxg5 {[%emt 0:01:04]} Bxg5 {[%emt 0:00:12]} 16. f4 {[%emt 0:01:10]} (16. Bxg5 $14 hxg5 17. Rb2) 16... exf4 $11 {[%emt 0:03:13]} 17. gxf4 {[%emt 0:00:10]} Be7 {[%emt 0:10:16]} (17... Bf6 $11) 18. Ne2 {[%emt 0:04:06] White is more active.} ({White should try} 18. e5 $1 $16) 18... Bd7 {[%emt 0:03:21]} 19. Ng3 $36 {[%emt 0:02:22][%mdl 2048] White is more active.} Re8 {[%emt 0:07:59]} 20. Kh1 {[%emt 0:09:43]} Nh4 {[%emt 0:06:50] [#]} (20... Bf6 $11 {remains equal.}) 21. Bb2 {[%emt 0:04:11]} ({White should play} 21. e5 $1 $16) 21... Bf6 $1 $14 {[%emt 0:05:24]} 22. Nh5 {[%emt 0:03:32]} (22. e5 $1 $14 {feels stronger.} dxe5 23. Nh5) 22... Bxb2 $4 {[%emt 0:13:21][%mdl 8192] Black is now going downhill.} (22... Bd4 $11) 23. Qxb2 $18 {[%emt 0:00:12][%csl Gh5][%cal Rb2g7]} (23. Rxb2 Bg4 24. Ng3 Qf6 $11) 23... f6 {[%emt 0:00:24]} 24. Qf2 {[%emt 0:08:55]} f5 $2 {[%emt 0:10:26]} (24... Nxg2 25. Qxg2 Re7) 25. Qg3 {[%emt 0:05:40][%csl Gh5][%cal Rg3g7] [#]} Qe7 {[%emt 0:04:26]} 26. e5 {[%emt 0:03:43]} Nxg2 {[%emt 0:03:18]} 27. Nf6+ {[%emt 0:03:49]} ({And not} 27. Kxg2 dxe5 28. Rb7 exf4 29. Qxg7+ (29. Nxf4 Qe4+ 30. Kg1 Rad8 $15) 29... Qxg7+ $11) 27... Kh8 {[%emt 0:00:15]} 28. Nxe8 {[%emt 0:00:00]} Rxe8 {[%emt 0:01:01]} 29. Kxg2 {[%emt 0:00:00]} Ba4 {[%emt 0:01:32]} 30. Rf2 {[%emt 0:00:27][%cal Bf1f2,Bf2b2,Bb2b7][%mdl 32] Prevents Bc2.} Kh7 {[%emt 0:06:37]} 31. Rfb2 {[%emt 0:03:57] Hoping for Rb7.} dxe5 {[%emt 0:01:50]} 32. fxe5 {[%emt 0:00:24]} Qxe5 {[%emt 0:00:23]} 33. Qxe5 {[%emt 0:00:12]} Rxe5 {[%emt 0:00:05][%mdl 4096] Endgame KRR-KRB} 34. Kf2 {[%emt 0:03:41] Threatens to win with Rb7.} f4 $2 {[%emt 0:01:48]} (34... Re4 35. Rb7 Kg6 36. Rg1+ (36. Rxa7 Rxc4 37. Rb6+ Kg5 $18) 36... Kf6) 35. Rb7 {[%emt 0:00:19]} Bc2 {[%emt 0:01:03]} 36. Rg1 {[%emt 0:00:54]} Bg6 {[%emt 0:02:43]} 37. d6 {[%emt 0:04:15]} Re6 {[%emt 0:02:00]} 38. Rd1 {[%emt 0:01:02] Black must now prevent d7.} f3 {[%emt 0:00:22]} 39. Re7 {[%emt 0:01:40]} Rf6 {[%emt 0:02:16]} 40. d7 {[%emt 0:00:20]} a5 {[%emt 0:00:21]} 41. d8=Q {[%emt 0:30:15]} a4 {[%emt 0:30:13]} 42. Rdd7 {[%emt 0:00:42] Weighted Error Value: White=0.19 (very precise) /Black=0.75} 1-0